bitfinex/quotes_SOLUSD_20241111
["timestamp","ask_amount","ask_price","bid_price","bid_amount"]
[1731345325088,6.4545,218.77,218.57,28.49019147]
[1731345325089,51.136884,218.75,218.57,28.49019147]
[1731345325497,51.136884,218.75,218.55,28.49019147]
[1731345325783,27.36,218.71,218.51,4.8547968]
[1731345325988,27.36,218.71,218.35,0.1]
[1731345325989,0.1,218.6,218.38,70.0]
[1731345326172,5.29533461,218.59,218.35,98.49019147]
[1731345326366,51.136884,218.55,218.35,70.0]
[1731345326566,40.213584,218.53,218.35,70.0]
[1731345326785,40.213584,218.53,218.23,1.97372643]
[1731345326786,27.36,218.5,218.23,70.0]
[1731345327109,0.1,218.42,218.16,70.0]
[1731345327391,51.136884,218.38,218.17,28.49019147]
[1731345327567,5.92507199,218.37,218.17,28.49019147]
[1731345327768,23.776884,218.36,218.15,28.49019147]
[1731345327987,57.06195599,218.36,218.15,28.49019147]
[1731345328165,23.776884,218.34,218.15,28.49019147]
[1731345328364,23.776884,218.34,218.19,28.49019147]
[1731345328598,23.776884,218.34,218.17,28.49019147]
[1731345328769,23.776884,218.35,218.17,28.49019147]
[1731345329272,23.776884,218.35,218.15,28.49019147]
[1731345329467,27.36,218.36,218.15,28.49019147]
[1731345329468,23.776884,218.33,218.15,28.49019147]
[1731345330388,23.776884,218.33,218.13,70.0]
[1731345330578,23.776884,218.33,218.08,28.49019147]
[1731345330893,23.776884,218.31,218.08,28.49019147]
[1731345331390,5.92507199,218.3,218.08,28.49019147]
[1731345331568,23.776884,218.31,218.12,28.49019147]
[1731345331893,23.776884,218.31,218.1,28.49019147]
[1731345332091,0.1,218.32,218.11,20.0]
[1731345332395,23.776884,218.33,218.12,28.49019147]
[1731345332692,23.776884,218.3,218.12,28.49019147]
[1731345333074,23.776884,218.3,218.1,28.49019147]
[1731345333270,23.776884,218.3,218.1,23.776884]
[1731345333670,23.776884,218.3,218.11,20.0]
[1731345333888,23.776884,218.3,218.06,70.0]
[1731345333889,23.776884,218.3,218.08,20.0]
[1731345334087,29.07221861,218.3,218.06,70.0]
[1731345334391,0.1,218.27,218.05,28.49019147]
[1731345335169,29.27221861,218.3,218.05,28.49019147]
[1731345335369,0.1,218.25,218.01,28.49019147]
[1731345335588,0.1,218.23,218.0,70.0]
[1731345335796,5.92507199,218.22,217.99,28.49019147]
[1731345335978,23.776884,218.21,217.99,28.49019147]
[1731345336170,6.617,218.18,217.99,28.49019147]
[1731345336370,29.64778211,218.17,217.95,28.49019147]
[1731345336572,0.1,218.13,217.84,70.0]
[1731345336770,27.10863461,218.18,217.86,28.49019147]
[1731345336771,0.1,218.1,217.86,28.49019147]
[1731345336992,29.83303933,218.09,217.88,28.49019147]
[1731345337370,0.1,218.06,217.77,70.0]
[1731345337672,23.876884,218.04,217.82,28.49019147]
[1731345337876,23.876884,218.04,217.77,70.0]
[1731345337877,5.84229811,218.03,217.86,28.49019147]
[1731345338178,23.776884,218.08,217.86,28.49019147]
[1731345338485,4.77708102,218.05,217.86,28.49019147]
[1731345339493,4.77708102,218.05,217.89,20.0]
[1731345339980,23.776884,218.04,217.89,20.0]
[1731345340175,23.776884,218.04,217.87,20.0]
[1731345340995,18.33742,218.03,217.87,20.0]
[1731345341177,18.33742,218.03,217.89,20.0]
[1731345343598,23.776884,218.0,217.8,28.49019147]
[1731345343981,23.776884,218.0,217.82,28.49019147]
[1731345344183,23.776884,218.0,217.8,28.49019147]
[1731345344376,56.97741266,218.0,217.78,28.49019147]
[1731345344582,5.94052866,217.99,217.78,28.49019147]
[1731345344793,23.776884,217.98,217.76,28.49019147]
[1731345344987,29.61741266,217.98,217.76,28.49019147]
[1731345345301,0.1,217.97,217.74,28.49019147]
[1731345345988,0.1,217.97,217.72,70.0]
[1731345345989,0.1,217.97,217.76,28.49019147]
[1731345346187,0.1,217.97,217.68,28.49019147]
[1731345346188,0.1,217.94,217.68,70.0]
[1731345346388,23.776884,217.94,217.73,28.49019147]
[1731345346579,5.29533461,217.96,217.75,28.49019147]
[1731345346779,2.0324004,217.98,217.68,28.49019147]
[1731345346780,23.776884,217.97,217.79,28.49019147]
[1731345346981,16.0265,218.01,217.8,28.49019147]
[1731345347295,16.0265,218.01,217.81,28.49019147]
[1731345347490,17.99457634,218.01,217.81,28.49019147]
[1731345347798,16.0265,218.01,217.82,72.26707547]
[1731345348107,16.0265,218.01,217.82,43.776884]
[1731345348282,51.236884,218.0,217.73,70.0]
[1731345348490,56.43221861,218.0,217.77,28.49019147]
[1731345348704,56.43221861,218.0,217.76,28.49019147]
[1731345348906,56.43221861,218.0,217.77,28.49019147]
[1731345349098,56.43221861,218.0,217.76,28.49019147]
[1731345349399,16.0265,218.01,217.82,28.49019147]
[1731345349587,16.0265,218.01,217.81,28.49019147]
[1731345349795,16.0265,218.01,217.82,20.0]
[1731345350104,16.0265,218.01,217.8,43.776884]
[1731345350683,27.36,218.0,217.8,43.776884]
[1731345350880,27.36,217.98,217.8,72.26707547]
[1731345351082,16.0265,218.01,217.87,28.49019147]
[1731345351302,16.0265,218.01,217.88,20.0]
[1731345351812,16.0265,218.01,217.88,28.49019147]
[1731345352106,16.3626,218.09,217.96,20.0]
[1731345352305,34.692058,218.09,217.98,20.0]
[1731345352806,34.692058,218.09,217.93,43.776884]
[1731345352990,34.692058,218.09,217.93,72.26707547]
[1731345353192,34.692058,218.09,217.93,43.776884]
[1731345355306,34.692058,218.09,217.96,20.0]
[1731345355510,23.776884,218.08,217.9,28.49019147]
[1731345355685,23.776884,218.08,217.91,20.0]
[1731345356385,39.46813676,218.09,217.92,28.49019147]
[1731345356592,34.692058,218.09,217.95,20.0]
[1731345359013,23.776884,218.08,217.87,23.776884]
[1731345359191,28.55281722,218.08,217.91,28.49019147]
[1731345359390,28.55281722,218.08,217.92,20.0]
[1731345359896,4.77593322,218.08,217.96,28.49019147]
[1731345360094,34.692058,218.09,217.97,20.0]
[1731345360095,18.329458,218.09,217.97,20.0]
[1731345360295,6.4926,218.1,217.98,23.776884]
[1731345360493,6.4926,218.1,217.97,20.0]
[1731345361306,6.4926,218.1,217.98,28.49019147]
[1731345361507,6.4926,218.1,217.99,20.0]
[1731345362407,6.4926,218.1,218.01,20.0]
[1731345363294,6.2861,218.16,218.06,28.49019147]
[1731345363498,6.2861,218.16,218.07,20.0]
[1731345364095,6.2861,218.16,218.05,20.0]
[1731345364300,6.2861,218.16,218.02,52.26707547]
[1731345364301,6.2861,218.16,218.0,28.49019147]
[1731345364618,6.2861,218.16,217.96,70.0]
[1731345364619,6.2861,218.16,217.99,20.0]
[1731345365115,23.776884,218.15,217.97,20.0]
[1731345365624,27.36,218.12,217.95,20.0]
[1731345365809,27.36,218.1,217.95,20.0]
[1731345366915,27.36,218.14,217.95,20.0]
[1731345367103,27.36,218.1,217.95,20.0]
[1731345368213,27.36,218.1,217.97,20.0]
[1731345368703,33.6461,218.16,218.01,20.0]
[1731345369222,33.6461,218.16,218.0,20.0]
[1731345370500,33.6461,218.16,217.99,28.49019147]
[1731345370799,33.6461,218.16,218.05,28.49019147]
[1731345370997,6.2861,218.16,218.05,20.0]
[1731345371301,34.17732,218.18,218.08,23.776884]
[1731345371302,15.855,218.18,218.08,23.776884]
[1731345371506,6.4966,218.22,218.14,20.0]
[1731345371816,15.8997,218.25,218.17,28.49019147]
[1731345372017,15.8997,218.25,218.16,20.0]
[1731345372209,15.8997,218.25,218.15,20.0]
[1731345372601,15.8997,218.25,218.16,28.49019147]
[1731345372903,15.8997,218.25,218.08,23.776884]
[1731345372904,15.8997,218.25,218.12,28.49019147]
[1731345373105,15.8997,218.25,218.08,28.49019147]
[1731345373106,43.2597,218.25,218.08,28.49019147]
[1731345373309,43.2597,218.25,218.06,28.49019147]
[1731345373498,23.776884,218.22,218.04,28.49019147]
[1731345373830,23.776884,218.22,218.06,28.49019147]
[1731345374115,23.776884,218.24,218.1,28.49019147]
[1731345374334,43.2597,218.25,218.1,28.49019147]
[1731345374335,15.8997,218.25,218.1,28.49019147]
[1731345374630,15.8997,218.25,218.08,23.776884]
[1731345374798,15.8997,218.25,218.14,28.49019147]
[1731345375121,15.8997,218.25,218.13,20.0]
[1731345375432,15.8997,218.25,218.14,28.49019147]
[1731345375712,15.8997,218.25,218.17,20.0]
[1731345376125,15.8997,218.25,218.15,20.0]
[1731345376935,15.8997,218.25,218.17,20.0]
[1731345377225,6.2162,218.29,218.19,20.0]
[1731345377797,15.1282,218.32,218.22,28.49019147]
[1731345378003,15.1282,218.32,218.24,23.776884]
[1731345378222,24.878798,218.35,218.24,52.26707547]
[1731345378407,6.5707,218.35,218.25,20.0]
[1731345378726,24.878495,218.35,218.25,20.0]
[1731345378905,24.878495,218.35,218.23,20.0]
[1731345379217,6.5707,218.35,218.27,20.0]
[1731345379422,6.35406497,218.35,218.27,20.0]
[1731345379926,6.35406497,218.35,218.25,20.0]
[1731345380604,6.35406497,218.35,218.18,70.0]
[1731345380605,6.35406497,218.35,218.23,20.0]
[1731345381019,18.305297,218.39,218.27,48.49019147]
[1731345381225,15.1282,218.4,218.27,48.49019147]
[1731345381428,33.431782,218.4,218.27,48.49019147]
[1731345381724,33.431782,218.4,218.3,20.0]
[1731345381926,15.1298,218.48,218.34,20.0]
[1731345382102,18.298556,218.47,218.37,28.49019147]
[1731345382619,18.298556,218.47,218.38,43.776884]
[1731345382828,6.5259,218.52,218.4,20.0]
[1731345383207,24.820003,218.52,218.4,20.0]
[1731345383706,24.820003,218.52,218.39,20.0]
[1731345383912,24.820003,218.52,218.35,28.49019147]
[1731345384114,23.776884,218.51,218.36,20.0]
[1731345384630,23.776884,218.51,218.33,28.49019147]
[1731345384934,23.776884,218.51,218.31,28.49019147]
[1731345386123,23.776884,218.51,218.33,28.49019147]
[1731345386428,23.776884,218.51,218.36,20.0]
[1731345387022,23.776884,218.51,218.31,28.49019147]
[1731345387208,23.776884,218.51,218.32,20.0]
[1731345387528,23.776884,218.51,218.31,28.49019147]
[1731345388125,24.820003,218.52,218.39,28.49019147]
[1731345388323,24.820003,218.52,218.35,23.776884]
[1731345388737,24.820003,218.52,218.36,28.49019147]
[1731345389110,24.820003,218.52,218.39,23.776884]
[1731345389924,6.5259,218.52,218.42,20.0]
[1731345390122,6.5259,218.52,218.38,28.49019147]
[1731345390413,24.819914,218.52,218.37,43.776884]
[1731345390616,27.36,218.51,218.37,43.776884]
[1731345391133,27.36,218.51,218.38,23.776884]
[1731345391338,27.36,218.51,218.38,52.26707547]
[1731345391816,27.36,218.51,218.37,20.0]
[1731345392637,27.36,218.51,218.39,20.0]
[1731345392937,27.36,218.51,218.35,43.776884]
[1731345393114,27.36,218.47,218.25,16.2303]
[1731345393316,23.776884,218.44,218.26,28.49019147]
[1731345393527,43.5186,218.42,218.24,28.49019147]
[1731345393831,16.1586,218.42,218.29,28.49019147]
[1731345394514,16.1586,218.42,218.3,20.0]
[1731345394718,16.1586,218.42,218.29,28.49019147]
[1731345394915,16.1586,218.42,218.3,20.0]
[1731345395233,43.5186,218.42,218.25,28.49019147]
[1731345395435,43.5186,218.42,218.27,28.49019147]
[1731345395621,16.1586,218.42,218.31,28.49019147]
[1731345396444,27.36,218.47,218.32,43.776884]
[1731345397115,22.7529,218.48,218.35,28.49019147]
[1731345397321,22.7529,218.48,218.37,20.0]
[1731345398042,22.7529,218.48,218.36,20.0]
[1731345398930,50.1129,218.48,218.35,20.0]
[1731345399136,50.1129,218.48,218.32,20.0]
[1731345399436,50.1129,218.48,218.31,23.776884]
[1731345399624,50.1129,218.48,218.33,23.776884]
[1731345399837,50.1129,218.48,218.35,23.776884]
[1731345400642,50.1129,218.48,218.33,23.776884]
[1731345401136,50.1129,218.48,218.32,20.0]
[1731345401137,22.7529,218.48,218.36,20.0]
[1731345401433,15.0817,218.54,218.4,20.0]
[1731345401733,27.36,218.53,218.4,20.0]
[1731345403721,27.36,218.53,218.35,28.49019147]
[1731345403920,27.36,218.53,218.36,23.776884]
[1731345404317,27.36,218.53,218.37,28.49019147]
[1731345404836,27.36,218.53,218.38,23.776884]
[1731345405040,27.36,218.53,218.35,28.49019147]
[1731345405343,27.36,218.53,218.36,23.776884]
[1731345405839,27.36,218.51,218.32,23.776884]
[1731345406016,23.776884,218.48,218.27,35.14959147]
[1731345406217,27.36,218.43,218.25,28.49019147]
[1731345406412,27.36,218.43,218.24,16.5155]
[1731345406413,27.36,218.43,218.27,28.49019147]
[1731345407034,27.36,218.43,218.29,28.49019147]
[1731345407238,27.36,218.43,218.27,70.0]
[1731345407239,27.36,218.43,218.27,28.49019147]
[1731345407632,27.36,218.43,218.28,43.776884]
[1731345407819,27.36,218.43,218.25,48.49019147]
[1731345408016,27.36,218.43,218.27,28.49019147]
[1731345408241,15.1416,218.44,218.29,28.49019147]
[1731345408553,15.1416,218.44,218.33,28.49019147]
[1731345408718,15.2257,218.5,218.37,28.49019147]
[1731345408922,15.2257,218.5,218.39,28.49019147]
[1731345409332,6.0639,218.52,218.44,20.0]
[1731345410044,27.36,218.56,218.44,20.0]
[1731345410541,21.2896,218.57,218.42,20.0]
[1731345410928,21.2896,218.57,218.44,20.0]
[1731345411644,48.6496,218.57,218.37,28.49019147]
[1731345411830,27.36,218.54,218.38,20.0]
[1731345412034,51.136884,218.53,218.33,28.49019147]
[1731345412341,51.136884,218.53,218.29,28.49019147]
[1731345412527,27.36,218.49,218.27,28.49019147]
[1731345412726,51.136884,218.46,218.27,28.49019147]
[1731345413031,51.136884,218.46,218.29,28.49019147]
[1731345413232,15.2257,218.5,218.24,93.0684]
[1731345413233,42.5857,218.5,218.31,28.49019147]
[1731345413425,23.776884,218.49,218.31,28.49019147]
[1731345413636,23.776884,218.49,218.33,28.49019147]
[1731345414055,23.776884,218.49,218.34,20.0]
[1731345414630,42.5857,218.5,218.34,20.0]
[1731345414937,23.776884,218.49,218.34,20.0]
[1731345417533,15.2257,218.5,218.36,20.0]
[1731345417859,15.2257,218.5,218.28,28.49019147]
[1731345417860,15.2257,218.5,218.4,20.0]
[1731345418850,6.0639,218.52,218.4,20.0]
[1731345420041,6.0639,218.52,218.38,20.0]
[1731345420463,6.0639,218.52,218.4,20.0]
[1731345422069,21.2816,218.57,218.44,20.0]
[1731345422271,21.2816,218.57,218.46,20.0]
[1731345422761,21.2816,218.57,218.44,20.0]
[1731345422964,21.2816,218.57,218.46,20.0]
[1731345423548,21.2816,218.57,218.48,20.0]
[1731345423865,6.4074,218.62,218.5,20.0]
[1731345424167,6.4074,218.62,218.53,20.0]
[1731345424661,6.4074,218.62,218.52,20.0]
[1731345426166,6.4074,218.62,218.49,23.776884]
[1731345426349,6.4074,218.62,218.5,20.0]
[1731345426961,6.4074,218.62,218.48,20.0]
[1731345427160,51.136884,218.61,218.43,28.49019147]
[1731345427544,23.776884,218.61,218.45,28.49019147]
[1731345427770,6.4074,218.62,218.49,28.49019147]
[1731345427948,6.4074,218.62,218.47,28.49019147]
[1731345428158,6.4074,218.62,218.45,28.49019147]
[1731345428766,6.4074,218.62,218.46,43.776884]
[1731345428944,51.136884,218.61,218.44,20.0]
[1731345429146,51.136884,218.61,218.43,23.776884]
[1731345429387,51.136884,218.61,218.44,20.0]
[1731345431064,27.36,218.61,218.47,28.49019147]
[1731345431245,27.36,218.61,218.5,20.0]
[1731345432678,27.36,218.61,218.47,23.776884]
[1731345432964,27.36,218.59,218.46,20.0]
[1731345433463,33.7674,218.62,218.5,20.0]
[1731345433645,33.7674,218.62,218.52,20.0]
[1731345434361,33.7674,218.62,218.5,20.0]
[1731345434561,33.7674,218.62,218.48,20.0]
[1731345435452,33.7674,218.62,218.43,28.49019147]
[1731345435659,27.36,218.58,218.43,28.49019147]
[1731345435876,27.36,218.58,218.45,28.49019147]
[1731345436062,27.36,218.56,218.36,70.0]
[1731345436257,27.36,218.56,218.3,0.1]
[1731345436258,27.36,218.54,218.39,28.49019147]
[1731345436457,27.36,218.54,218.41,28.49019147]
[1731345436665,27.36,218.54,218.43,28.49019147]
[1731345437171,11.17197711,218.62,218.45,28.49019147]
[1731345437172,27.36,218.61,218.45,28.49019147]
[1731345437377,3.37091685,218.6,218.47,28.49019147]
[1731345437574,27.36,218.61,218.48,20.0]
[1731345438577,27.36,218.61,218.46,43.776884]
[1731345438780,27.36,218.61,218.48,20.0]
[1731345439362,27.36,218.61,218.49,28.49019147]
[1731345439575,27.36,218.61,218.5,20.0]
[1731345439755,27.36,218.61,218.47,48.49019147]
[1731345439954,6.4074,218.62,218.49,48.49019147]
[1731345440179,6.4074,218.62,218.54,20.0]
[1731345440386,33.7674,218.62,218.48,23.776884]
[1731345440570,33.7674,218.62,218.42,28.49019147]
[1731345440772,27.36,218.6,218.4,28.49019147]
[1731345441281,27.36,218.52,218.34,28.49019147]
[1731345441482,27.36,218.48,218.32,28.49019147]
[1731345441664,16.1881,218.41,218.26,6.501]
[1731345441857,43.5481,218.41,218.26,28.49019147]
[1731345442064,43.5481,218.41,218.28,28.49019147]
[1731345442669,16.1881,218.41,218.3,28.49019147]
[1731345443383,16.1881,218.41,218.25,70.0]
[1731345443384,16.1881,218.41,218.32,28.49019147]
[1731345443567,16.1881,218.41,218.3,28.49019147]
[1731345443886,43.5481,218.41,218.26,28.49019147]
[1731345444183,43.5481,218.41,218.28,28.49019147]
[1731345445156,43.5481,218.41,218.3,28.49019147]
[1731345445380,43.5481,218.41,218.31,20.0]
[1731345445758,43.5481,218.41,218.28,28.49019147]
[1731345445961,43.5481,218.41,218.29,20.0]
[1731345447266,16.1881,218.41,218.31,20.0]
[1731345447471,45.5244326,218.47,218.34,28.49019147]
[1731345447685,43.5109,218.47,218.35,20.0]
[1731345448063,43.5109,218.47,218.3,28.49019147]
[1731345448268,43.5109,218.47,218.31,20.0]
[1731345448886,27.36,218.43,218.31,20.0]
[1731345449685,27.36,218.45,218.31,20.0]
[1731345449891,23.776884,218.42,218.28,28.49019147]
[1731345450187,27.36,218.41,218.28,28.49019147]
[1731345450493,27.36,218.39,218.26,28.49019147]
[1731345450784,39.012784,218.38,218.22,28.49019147]
[1731345450989,27.36,218.33,218.17,28.49019147]
[1731345451686,27.36,218.33,218.19,28.49019147]
[1731345451915,27.36,218.33,218.14,6.219]
[1731345451916,27.36,218.33,218.21,28.49019147]
[1731345452185,27.36,218.36,218.23,28.49019147]
[1731345452393,27.36,218.34,218.21,28.49019147]
[1731345452574,27.36,218.34,218.23,28.49019147]
[1731345452890,27.36,218.34,218.21,28.49019147]
[1731345453280,27.36,218.34,218.22,20.0]
[1731345453465,17.27054141,218.38,218.24,20.0]
[1731345453671,23.776884,218.37,218.24,20.0]
[1731345453971,27.36,218.36,218.24,20.0]
[1731345454178,27.36,218.36,218.27,28.49019147]
[1731345454381,15.2359,218.38,218.29,28.49019147]
[1731345455289,16.4711,218.44,218.37,28.49019147]
[1731345455716,16.4711,218.44,218.33,28.49019147]
[1731345456002,16.4711,218.44,218.3,20.0]
[1731345456593,16.4711,218.44,218.33,28.49019147]
[1731345456789,16.4711,218.44,218.35,28.49019147]
[1731345457004,16.4711,218.44,218.36,20.0]
[1731345457205,16.4711,218.44,218.37,28.49019147]
[1731345457503,6.5008,218.45,218.38,20.0]
[1731345457994,6.5008,218.45,218.33,28.49019147]
[1731345458197,6.5008,218.45,218.35,28.49019147]
[1731345458402,6.5008,218.45,218.36,20.0]
[1731345459083,6.5008,218.45,218.34,20.0]
[1731345459282,51.136884,218.44,218.28,28.49019147]
[1731345459483,6.5008,218.45,218.3,28.49019147]
[1731345459716,6.5008,218.45,218.31,20.0]
[1731345460203,27.36,218.47,218.31,20.0]
[1731345460405,23.776884,218.46,218.31,20.0]
[1731345461106,23.776884,218.46,218.32,28.49019147]
[1731345461696,16.4711,218.5,218.34,28.49019147]
[1731345461886,16.4711,218.5,218.35,20.0]
[1731345462092,16.4711,218.5,218.37,20.0]
[1731345462493,16.4711,218.5,218.34,28.49019147]
[1731345462703,16.4711,218.5,218.35,20.0]
[1731345463014,16.4711,218.5,218.36,28.49019147]
[1731345463316,16.4711,218.5,218.4,28.49019147]
[1731345463492,0.3302,218.54,218.33,6.178]
[1731345463493,0.3302,218.54,218.43,20.0]
[1731345463699,0.3302,218.54,218.44,28.49019147]
[1731345463901,0.3302,218.54,218.43,20.0]
[1731345464206,0.3302,218.54,218.41,20.0]
[1731345464915,0.3302,218.54,218.4,28.49019147]
[1731345464916,0.3302,218.54,218.39,20.0]
[1731345465596,0.3302,218.54,218.4,28.49019147]
[1731345465911,0.3302,218.54,218.37,20.0]
[1731345466209,0.3302,218.54,218.38,28.49019147]
[1731345466504,0.3302,218.54,218.39,20.0]
[1731345466701,51.507084,218.54,218.39,20.0]
[1731345467912,51.507084,218.54,218.36,28.49019147]
[1731345468093,51.507084,218.54,218.37,43.776884]
[1731345468510,51.507084,218.54,218.37,20.0]
[1731345468692,51.507084,218.54,218.33,6.178]
[1731345468693,0.1,218.53,218.33,6.178]
[1731345469007,3.37306757,218.53,218.38,28.49019147]
[1731345469201,51.507084,218.54,218.38,28.49019147]
[1731345469601,0.3302,218.54,218.42,28.49019147]
[1731345469899,16.5044,218.56,218.46,28.49019147]
[1731345470207,16.5044,218.56,218.47,20.0]
[1731345470397,16.5044,218.56,218.46,20.0]
[1731345470602,16.5044,218.56,218.46,48.49019147]
[1731345470792,16.5044,218.56,218.48,20.0]
[1731345471294,16.5044,218.56,218.46,28.49019147]
[1731345471498,16.5044,218.56,218.45,43.776884]
[1731345471697,16.5044,218.56,218.37,85.4155]
[1731345471895,16.5044,218.56,218.45,20.0]
[1731345472098,16.5044,218.56,218.47,20.0]
[1731345472609,16.5044,218.56,218.45,48.49019147]
[1731345472815,16.5044,218.56,218.47,20.0]
[1731345473110,16.5044,218.56,218.45,28.49019147]
[1731345473295,16.5044,218.56,218.43,28.49019147]
[1731345473497,16.5044,218.56,218.44,43.776884]
[1731345474000,16.5044,218.56,218.44,20.0]
[1731345474202,16.5044,218.56,218.42,20.0]
[1731345474608,16.5044,218.56,218.41,28.49019147]
[1731345475313,16.5044,218.56,218.43,28.49019147]
[1731345475515,16.5044,218.56,218.41,28.49019147]
[1731345475809,27.4,218.55,218.39,48.49019147]
[1731345476009,27.4,218.55,218.41,48.49019147]
[1731345476201,16.5044,218.56,218.33,76.178]
[1731345476202,27.4,218.53,218.37,43.90569147]
[1731345476507,27.4,218.49,218.33,28.49019147]
[1731345476806,27.4,218.49,218.35,28.49019147]
[1731345477326,27.4,218.49,218.33,28.49019147]
[1731345477618,27.4,218.49,218.34,20.0]
[1731345478612,0.3302,218.5,218.34,20.0]
[1731345478796,27.4,218.49,218.34,20.0]
[1731345479188,27.4,218.49,218.31,28.49019147]
[1731345479402,27.4,218.49,218.32,23.776884]
[1731345479607,27.4,218.47,218.29,28.49019147]
[1731345479910,27.4,218.47,218.31,28.49019147]
[1731345480288,27.4,218.47,218.32,20.0]
[1731345480488,23.776884,218.48,218.31,28.49019147]
[1731345480698,23.776884,218.46,218.29,28.49019147]
[1731345482217,23.776884,218.46,218.3,20.0]
[1731345483022,51.176884,218.46,218.25,28.49019147]
[1731345483202,20.19567497,218.47,218.22,6.4974]
[1731345483203,51.607084,218.43,218.22,6.4974]
[1731345483410,0.1,218.39,218.17,34.98759147]
[1731345483711,51.176884,218.37,218.15,28.49019147]
[1731345483911,27.4,218.35,218.15,28.49019147]
[1731345484115,23.776884,218.34,218.19,28.49019147]
[1731345484428,15.4209,218.36,218.23,28.49019147]
[1731345484715,15.4209,218.36,218.27,28.49019147]
[1731345484913,4.118,218.56,218.16,28.49019147]
[1731345484914,16.1574,218.42,218.31,28.49019147]
[1731345485093,16.1574,218.42,218.32,20.0]
[1731345485419,16.1574,218.42,218.36,20.0]
[1731345485711,5.3302,218.45,218.34,23.776884]
[1731345485712,5.3302,218.45,218.38,20.0]
[1731345485915,16.1574,218.48,218.39,28.49019147]
[1731345486092,5.3302,218.51,218.42,20.0]
[1731345486708,5.3302,218.51,218.4,20.0]
[1731345487806,5.3302,218.51,218.39,28.49019147]
[1731345488118,5.3302,218.51,218.42,20.0]
[1731345488893,5.3302,218.51,218.4,20.0]
[1731345489498,23.776884,218.5,218.37,28.49019147]
[1731345489714,23.776884,218.5,218.33,28.49019147]
[1731345489921,5.3302,218.51,218.37,28.49019147]
[1731345490416,5.3302,218.51,218.41,28.49019147]
[1731345490596,5.3302,218.51,218.3,70.0]
[1731345490797,23.776884,218.5,218.33,28.49019147]
[1731345491216,51.176884,218.48,218.31,28.49019147]
[1731345491621,51.176884,218.48,218.29,6.5311]
[1731345491622,51.276884,218.48,218.29,28.49019147]
[1731345491808,51.176884,218.46,218.27,28.49019147]
[1731345492007,27.4,218.42,218.27,28.49019147]
[1731345492215,23.776884,218.41,218.27,28.49019147]
[1731345492419,51.176884,218.41,218.25,28.49019147]
[1731345493327,51.176884,218.41,218.19,16.2502]
[1731345493500,51.176884,218.41,218.22,28.49019147]
[1731345493705,23.776884,218.38,218.22,28.49019147]
[1731345494010,51.176884,218.35,218.2,28.49019147]
[1731345494209,51.176884,218.35,218.18,28.49019147]
[1731345494422,56.59876149,218.35,218.16,28.49019147]
[1731345494620,5.3302,218.36,218.18,28.49019147]
[1731345494621,51.176884,218.32,218.18,28.49019147]
[1731345495012,51.176884,218.32,218.16,28.49019147]
[1731345495216,51.176884,218.29,218.14,28.49019147]
[1731345495521,15.5759,218.31,218.14,28.49019147]
[1731345495823,29.48042815,218.3,218.12,28.49019147]
[1731345496016,23.776884,218.28,218.12,28.49019147]
[1731345496225,34.81062815,218.3,218.12,28.49019147]
[1731345496532,23.776884,218.28,218.1,28.49019147]
[1731345496820,23.776884,218.26,218.06,28.49019147]
[1731345497122,23.776884,218.24,218.06,28.49019147]
[1731345497604,0.1,218.23,218.02,28.49019147]
[1731345497808,23.776884,218.21,218.02,28.49019147]
[1731345498021,23.776884,218.21,218.04,28.49019147]
[1731345498202,23.776884,218.21,217.93,15.3504]